fUSD/lending_fUSD_20241123
["ID","MTS","AMOUNT","RATE_DAILY","PERIOD"]
[343064154,1732321451818,-1600.0,0.00062848,120]
[343064155,1732321451844,-150.0,0.0006299,60]
[343064156,1732321451871,-150.0,0.0006299,60]
[343064157,1732321451898,-150.0,0.0006299,60]
[343064158,1732321451925,-362.72,0.0006299,60]
[343064159,1732321451951,-150.0,0.0006299,60]
[343064160,1732321451978,-969.52,0.0006299,60]
[343064161,1732321452005,-433.58,0.0006299,60]
[343064162,1732321452033,-150.0,0.0006299,60]
[343064163,1732321452061,-362.72,0.0006299,60]
[343064164,1732321452088,-150.0,0.0006299,60]
[343064165,1732321452116,-150.0,0.0006299,60]
[343064166,1732321452144,-433.58,0.0006299,60]
[343064167,1732321452173,-969.52,0.0006299,60]
[343064168,1732321452201,-362.72,0.0006299,60]
[343064169,1732321452230,-150.0,0.0006299,60]
[343064170,1732321452258,-433.58,0.0006299,60]
[343064171,1732321452285,-150.0,0.0006299,60]
[343064172,1732321452314,-362.72,0.0006299,60]
[343064173,1732321452342,-150.0,0.0006299,60]
[343064174,1732321452370,-150.0,0.0006299,60]
[343064175,1732321452396,-362.72,0.0006299,60]
[343064176,1732321452421,-433.58,0.0006299,60]
[343064177,1732321452447,-150.0,0.0006299,60]
[343064178,1732321452474,-359.15,0.0006299,60]
[343064179,1732321452504,-337.66,0.0006299,60]
[343064180,1732321452530,-433.58,0.0006299,60]
[343064181,1732321452558,-220.76,0.0006299,60]
[343064182,1732321452585,-433.58,0.0006299,60]
[343064183,1732321452613,-433.58,0.0006299,60]
[343064184,1732321452642,-150.0,0.0006299,60]
[343064185,1732321452671,-430.76,0.0006299,60]
[343064186,1732321452698,-150.0,0.0006299,60]
[343064187,1732321452726,-150.0,0.0006299,60]
[343064188,1732321452752,-150.0,0.0006299,60]
[343064189,1732321452779,-150.0,0.0006299,60]
[343064190,1732321452807,-150.0,0.0006299,60]
[343064191,1732321452832,-150.0,0.0006299,60]
[343064192,1732321452858,-150.0,0.0006299,60]
[343064193,1732321452884,-150.0,0.0006299,60]
[343064194,1732321452909,-150.0,0.0006299,60]
[343064195,1732321453018,-150.0,0.0006299,60]
[343064196,1732321453052,-177.44,0.0006299,60]
[343064197,1732321453080,-500.0,0.00062996,120]
[343064198,1732321453105,-500.0,0.00063017,120]
[343064199,1732321453132,-648.61318201,0.00063079,15]
[343064200,1732321453157,-1600.0,0.00063164,120]
[343064201,1732321453183,-969.0860097,0.00063203,7]
[343064202,1732321453209,-5216.19750537,0.00063232,15]
[343064203,1732321453234,-500.0,0.00063363,120]
[343064204,1732321453260,-321.96362714,0.0006342,2]
[343064205,1732321453288,-232.43,0.00063436,2]
[343064206,1732321453317,-232.43,0.00063453,2]
[343064207,1732321453344,-232.43,0.0006347,2]
[343064208,1732321453371,-232.43,0.00063486,2]
[343064209,1732321453399,-157.53,0.00063497,120]
[343064210,1732321453426,-232.43,0.00063503,2]
[343064211,1732321453454,-232.43,0.0006352,2]
[343064212,1732321453481,-232.43,0.00063537,2]
[343064213,1732321453508,-232.43,0.00063553,2]
[343064214,1732321453535,-1695.7,0.00063555,2]
[343064215,1732321453563,-232.43,0.0006357,2]
[343064216,1732321453590,-232.43,0.00063587,2]
[343064217,1732321453617,-232.43,0.00063603,2]
[343064218,1732321453644,-232.43,0.0006362,2]
[343064219,1732321453671,-181.59,0.00063623,120]
[343064220,1732321453701,-232.43,0.00063637,2]
[343064221,1732321453728,-232.43,0.00063653,2]
[343064222,1732321453760,-232.43,0.0006367,2]
[343064223,1732321453789,-232.43,0.00063687,2]
[343064224,1732321453819,-232.43,0.00063703,2]
[343064225,1732321453845,-150.0,0.00063712,2]
[343064226,1732321453873,-232.43,0.0006372,2]
[343064227,1732321453900,-232.43,0.00063737,2]
[343064228,1732321453928,-232.43,0.00063753,2]
[343064229,1732321453956,-5216.19750537,0.00063899,15]
[343064230,1732321453982,-200.0,0.00064222,2]
[343064231,1732321454008,-2447.68,0.00064268,30]
[343064232,1732321454035,-150.0,0.00064301,120]
[343064233,1732321454063,-2250.0,0.000644,120]
[343064234,1732321454090,-152.0,0.00064422,5]
[343064235,1732321454116,-500.0,0.00064439,120]
[343064236,1732321454142,-268.18,0.00064495,2]
[343064237,1732321454168,-4575.0,0.000645,44]
[343064238,1732321454195,-5216.19750537,0.00064566,15]
[343064239,1732321454221,-500.0,0.00064617,120]
[343064240,1732321454247,-500.0,0.00064843,120]
[343064241,1732321454272,-600.0,0.00064955,120]
[343064242,1732321454301,-365.50840336,0.00065156,120]
[343064243,1732321454328,-1600.0,0.00065163,120]
[343064244,1732321454356,-5216.19750537,0.00065233,15]
[343064245,1732321454382,-500.0,0.00065297,120]
[343064246,1732321454408,-1600.0,0.00065303,120]
[343064247,1732321454434,-153.0,0.00065319,120]
[343064248,1732321454460,-153.0,0.00065319,120]
[343064249,1732321454488,-266.0,0.00065319,120]
[343064250,1732321454516,-266.0,0.00065319,120]
[343064251,1732321454543,-266.0,0.00065319,120]
[343064252,1732321454576,-266.0,0.00065319,120]
[343064253,1732321454602,-266.0,0.00065319,120]
[343064254,1732321454628,-266.0,0.00065319,120]
[343064255,1732321454653,-266.0,0.00065319,120]
[343064256,1732321454680,-266.0,0.00065319,120]
[343064257,1732321454708,-266.0,0.00065319,120]
[343064258,1732321454736,-266.0,0.00065319,120]
[343064259,1732321454764,-266.0,0.00065319,120]
[343064260,1732321454885,-266.0,0.00065319,120]
[343064261,1732321454912,-266.0,0.00065319,120]
[343064262,1732321454938,-153.0,0.00065319,120]
[343064263,1732321454965,-153.0,0.00065319,120]
[343064264,1732321454992,-153.0,0.00065319,120]
[343064265,1732321455019,-266.0,0.00065319,120]
[343064266,1732321455045,-266.0,0.00065319,120]
[343064267,1732321455077,-266.0,0.00065319,120]
[343064268,1732321455104,-266.0,0.00065319,120]
[343064269,1732321455131,-266.0,0.00065319,120]
[343064270,1732321455159,-266.0,0.00065319,120]
[343064271,1732321455186,-266.0,0.00065319,120]
[343064272,1732321455213,-266.0,0.00065319,120]
[343064273,1732321455241,-266.0,0.00065319,120]
[343064274,1732321455267,-266.0,0.00065319,120]
[343064275,1732321455293,-266.0,0.00065319,120]
[343064276,1732321455323,-266.0,0.00065319,120]
[343064277,1732321455348,-266.0,0.00065319,120]
[343064278,1732321455375,-266.0,0.00065319,120]
[343064279,1732321455402,-266.0,0.00065319,120]
[343064280,1732321455428,-153.0,0.00065319,120]
[343064281,1732321455455,-153.0,0.00065319,120]
[343064282,1732321455480,-153.0,0.00065319,120]
[343064283,1732321455505,-266.0,0.00065319,120]
[343064284,1732321455531,-266.0,0.00065319,120]
[343064285,1732321455559,-266.0,0.00065319,120]
[343064286,1732321455586,-266.0,0.00065319,120]
[343064287,1732321455613,-266.0,0.00065319,120]
[343064288,1732321455641,-266.0,0.00065319,120]
[343064289,1732321455667,-266.0,0.00065319,120]
[343064290,1732321455694,-266.0,0.00065319,120]
[343064291,1732321455724,-266.0,0.00065319,120]
[343064292,1732321455751,-266.0,0.00065319,120]
[343064293,1732321455778,-266.0,0.00065319,120]
[343064294,1732321455807,-266.0,0.00065319,120]
[343064295,1732321455834,-266.0,0.00065319,120]
[343064296,1732321455861,-4213.0,0.00065338,117]
[343064297,1732321455888,-764.68,0.000654,60]
[343064298,1732321455914,-150.0,0.000654,60]
[343064299,1732321455940,-764.68,0.000654,60]
[343064300,1732321455966,-150.0,0.000654,60]
[343064301,1732321455993,-764.68,0.000654,60]
[343064302,1732321456019,-150.0,0.000654,60]
[343064303,1732321456045,-764.68,0.000654,60]
[343064304,1732321456074,-150.0,0.000654,60]
[343064305,1732321456100,-150.0,0.000654,60]
[343064306,1732321456125,-153.47,0.000654,60]
[343064307,1732321456152,-250.0,0.00065405,120]
[343064308,1732321456179,-500.0,0.00065439,120]
[343064309,1732321456208,-150.0,0.00065727,30]
[343064310,1732321456236,-1500.0,0.00065728,60]
[343064311,1732321456266,-150.0,0.00065732,30]
[343064312,1732321456294,-150.0,0.00065735,30]
[343064313,1732321456325,-1500.0,0.00065735,60]
[343064314,1732321456351,-1500.0,0.00065735,60]
[343064315,1732321456380,-150.0,0.00065736,30]
[343064316,1732321456408,-150.0,0.00065736,30]
[343064317,1732321456435,-150.0,0.00065738,30]
[343064318,1732321456460,-150.0,0.00065739,30]
[343064319,1732321456487,-1500.0,0.00065741,60]
[343064320,1732321456515,-150.0,0.00065742,30]
[343064321,1732321456543,-150.0,0.00065744,30]
[343064322,1732321456653,-1500.0,0.00065747,60]
[343064323,1732321456688,-150.0,0.00065747,30]
[343064324,1732321456723,-150.0,0.0006575,60]
[343064325,1732321456754,-150.0,0.0006575,30]
[343064326,1732321456785,-150.0,0.0006575,30]
[343064327,1732321456820,-150.0,0.00065751,30]
[343064328,1732321456848,-150.0,0.00065751,30]
[343064329,1732321456878,-150.0,0.00065752,30]
[343064330,1732321456907,-150.0,0.00065753,30]
[343064331,1732321456934,-150.0,0.00065757,60]
[343064332,1732321456966,-150.0,0.00065758,60]
[343064333,1732321456996,-150.0,0.0006576,60]
[343064334,1732321457022,-150.0,0.0006576,60]
[343064335,1732321457048,-150.0,0.00065763,60]
[343064336,1732321457078,-1500.0,0.00065764,60]
[343064337,1732321457105,-150.0,0.00065764,60]
[343064338,1732321457133,-150.0,0.00065767,60]
[343064339,1732321457160,-150.0,0.00065767,60]
[343064340,1732321457186,-1500.0,0.00065768,60]
[343064341,1732321457215,-150.0,0.00065769,60]
[343064342,1732321457243,-150.0,0.00065773,60]
[343064343,1732321457270,-150.0,0.00065774,60]
[343064344,1732321457298,-150.0,0.00065775,60]
[343064345,1732321457329,-150.0,0.00065778,60]
[343064346,1732321457356,-1500.0,0.00065781,60]
[343064347,1732321457382,-150.0,0.00065781,60]
[343064348,1732321457408,-150.0,0.00065783,60]
[343064349,1732321457435,-150.0,0.00065784,60]
[343064350,1732321457463,-150.0,0.00065784,60]
[343064351,1732321457489,-1500.0,0.00065784,60]
[343064352,1732321457514,-1500.0,0.00065784,60]
[343064353,1732321457541,-150.0,0.00065785,60]
[343064354,1732321457570,-150.0,0.00065787,60]
[343064355,1732321457601,-150.0,0.00065787,60]
[343064356,1732321457627,-150.0,0.00065789,60]
[343064357,1732321457654,-644.17,0.00065791,120]
[343064358,1732321457680,-150.0,0.00065792,60]
[343064359,1732321457709,-150.0,0.00065794,60]
[343064360,1732321457736,-150.0,0.00065795,60]
[343064361,1732321457765,-150.0,0.00065795,60]
[343064362,1732321457795,-150.0,0.00065795,60]
[343064363,1732321457826,-150.0,0.00065797,60]
[343064364,1732321457853,-150.0,0.00065798,60]
[343064365,1732321457881,-150.0,0.00065798,60]
[343064366,1732321457906,-150.0,0.000658,60]
[343064367,1732321457931,-1500.0,0.00065802,60]
[343064368,1732321457958,-1500.0,0.00065809,60]
[343064369,1732321457983,-150.0,0.00065812,60]
[343064370,1732321458009,-150.0,0.00065813,60]
[343064371,1732321458037,-150.0,0.00065813,60]
[343064372,1732321458067,-150.0,0.00065816,60]
[343064373,1732321458095,-150.0,0.00065816,60]
[343064374,1732321458122,-1695.7,0.00065818,2]
[343064375,1732321458149,-1500.0,0.00065821,60]
[343064376,1732321458178,-150.0,0.00065822,60]
[343064377,1732321458206,-1500.0,0.00065822,60]
[343064378,1732321458236,-150.0,0.00065824,60]
[343064379,1732321458265,-150.0,0.00065825,60]
[343064380,1732321458293,-150.0,0.00065825,60]
[343064381,1732321458322,-150.0,0.00065825,60]
[343064382,1732321458350,-150.0,0.00065826,60]
[343064383,1732321458469,-150.0,0.0006583,60]
[343064384,1732321458495,-150.0,0.0006583,60]
[343064385,1732321458523,-150.0,0.0006583,60]
[343064386,1732321458548,-150.0,0.00065835,60]
[343064387,1732321458578,-150.0,0.00065838,60]
[343064388,1732321458606,-150.0,0.00065838,60]
[343064389,1732321458633,-150.0,0.00065839,60]
[343064390,1732321458660,-150.0,0.00065839,60]
[343064391,1732321458690,-150.0,0.0006584,60]
[343064392,1732321458718,-150.0,0.0006584,60]
[343064393,1732321458745,-1500.0,0.00065841,60]
[343064394,1732321458772,-150.0,0.00065842,60]
[343064395,1732321458805,-150.0,0.00065842,60]
[343064396,1732321458833,-1500.0,0.00065844,60]
[343064397,1732321458859,-1500.0,0.00065845,60]
[343064398,1732321458886,-1500.0,0.00065846,60]
[343064399,1732321458913,-150.0,0.00065846,60]
[343064400,1732321458940,-1500.0,0.00065846,60]
[343064401,1732321458969,-150.0,0.00065848,60]
[343064402,1732321458998,-150.0,0.00065848,60]
[343064403,1732321459024,-1600.0,0.00065849,120]
[343064404,1732321459051,-1500.0,0.0006585,60]
[343064405,1732321459087,-150.0,0.0006585,60]
[343064406,1732321459115,-300.0,0.00065851,60]
[343064407,1732321459150,-150.0,0.00065852,60]
[343064408,1732321459179,-150.0,0.00065852,120]
[343064409,1732321459209,-150.0,0.00065853,60]
[343064410,1732321459237,-1500.0,0.00065859,60]
[343064411,1732321459265,-150.0,0.0006586,60]
[343064412,1732321459296,-150.0,0.00065863,60]
[343064413,1732321459330,-150.0,0.00065864,60]
[343064414,1732321459359,-150.0,0.00065864,60]
[343064415,1732321459386,-150.0,0.00065866,60]
[343064416,1732321459413,-500.0,0.00065867,120]
[343064417,1732321459442,-499.999999,0.00065867,120]
[343064418,1732321459469,-500.0,0.00065867,120]
[343064419,1732321459495,-500.0,0.00065867,120]
[343064420,1732321459524,-271.02658697,0.00065867,120]
[343064421,1732321459556,-546.84,0.00065867,120]
[343064422,1732321459583,-500.0,0.00065867,120]
[343064423,1732321459610,-500.0,0.00065867,120]
[343064424,1732321459637,-500.0,0.00065867,120]
[343064425,1732321459662,-1500.0,0.00065868,60]
[343064426,1732321459689,-150.0,0.00065871,60]
[343064427,1732321459718,-637.80341113,0.00065871,120]
[343064428,1732321459745,-150.0,0.00065872,60]
[343064429,1732321459771,-1500.0,0.00065876,60]
[343064430,1732321459801,-150.0,0.00065876,60]
[343064431,1732321459831,-150.0,0.00065877,60]
[343064432,1732321459856,-500.0,0.00065879,120]
[343064433,1732321459882,-1500.0,0.0006588,60]
[343064434,1732321459906,-1500.0,0.00065881,60]
[343064435,1732321459931,-1500.0,0.00065882,60]
[343064436,1732321459955,-150.0,0.00065883,60]
[343064437,1732321459982,-1500.0,0.00065883,60]
[343064438,1732321460007,-1500.0,0.00065883,60]
[343064439,1732321460035,-1500.0,0.00065884,60]
[343064440,1732321460062,-150.0,0.00065885,60]
[343064441,1732321460173,-150.0,0.00065886,60]
[343064442,1732321460200,-168.16163064,0.00065889,60]
[343064443,1732321460228,-150.0,0.00065892,60]
[343064444,1732321460255,-150.0,0.00065892,60]
[343064445,1732321460282,-1480.92658221,0.00065893,60]
[343064446,1732321460312,-150.0,0.00065894,60]
[343064447,1732321460340,-150.0,0.00065896,60]
[343064448,1732321460367,-1500.0,0.00065897,60]
[343064449,1732321460393,-150.0,0.00065898,60]
[343064450,1732321460419,-170.83779692,0.000659,7]
[343064451,1732321460444,-285.68502872,0.000659,2]
[343064452,1732321460470,-5216.19750537,0.000659,15]
[343064453,1732321460495,-208.01707056,0.000659,2]
[343064454,1732321460521,-150.0,0.00065901,60]
[343064455,1732321460548,-150.0,0.00065901,60]
[343064456,1732321460577,-150.0,0.00065904,60]
[343064457,1732321460603,-150.0,0.00065905,60]
[343064458,1732321460629,-1500.0,0.00065906,60]
[343064459,1732321460656,-150.0,0.00065906,60]
[343064460,1732321460681,-150.0,0.00065907,60]
[343064461,1732321460706,-150.0,0.0006591,60]
[343064462,1732321460735,-150.0,0.00065913,60]
[343064463,1732321460760,-1500.0,0.00065914,60]
[343064464,1732321460788,-150.0,0.00065916,60]
[343064465,1732321460818,-150.0,0.00065916,60]
[343064466,1732321460846,-1500.0,0.00065919,60]
[343064467,1732321460872,-1500.0,0.0006592,60]
[343064468,1732321460899,-150.0,0.00065921,60]
[343064469,1732321460924,-150.0,0.00065923,60]
[343064470,1732321460951,-150.0,0.00065923,60]
[343064471,1732321460977,-1500.0,0.00065924,60]
[343064472,1732321461003,-150.0,0.00065927,60]
[343064473,1732321461028,-150.0,0.00065927,60]
[343064474,1732321461059,-150.0,0.00065929,60]
[343064475,1732321461087,-150.0,0.00065933,60]
[343064476,1732321461113,-150.0,0.00065933,60]
[343064477,1732321461140,-150.0,0.00065935,60]
[343064478,1732321461168,-150.0,0.00065936,60]
[343064479,1732321461195,-150.0,0.00065937,60]
[343064480,1732321461220,-150.0,0.00065942,60]
[343064481,1732321461247,-150.0,0.00065942,60]
[343064482,1732321461274,-1500.0,0.00065943,60]
[343064483,1732321461301,-150.0,0.00065947,60]
[343064484,1732321461329,-1500.0,0.00065951,60]
[343064485,1732321461355,-1500.0,0.00065953,60]
[343064486,1732321461382,-150.0,0.00065955,60]
[343064487,1732321461409,-150.0,0.00065955,60]
[343064488,1732321461435,-150.0,0.00065956,60]
[343064489,1732321461459,-150.0,0.00065957,60]
[343064490,1732321461485,-150.0,0.0006596,60]
[343064491,1732321461511,-150.0,0.0006596,60]
[343064492,1732321461538,-150.0,0.00065961,60]
[343064493,1732321461564,-150.0,0.00065967,60]
[343064494,1732321461591,-150.0,0.00065972,60]
[343064495,1732321461616,-150.0,0.00065973,60]
[343064496,1732321461641,-150.0,0.00065975,60]
[343064497,1732321461758,-150.0,0.00065975,60]
[343064498,1732321461788,-1500.0,0.00065975,60]
[343064499,1732321461817,-150.0,0.00065976,60]
[343064500,1732321461844,-150.0,0.00065976,60]
[343064501,1732321461872,-150.0,0.00065976,60]
[343064502,1732321461897,-150.0,0.00065977,60]
[343064503,1732321461921,-150.0,0.0006598,60]
[343064504,1732321461948,-150.0,0.00065984,60]
[343064505,1732321461973,-1500.0,0.00065984,60]
[343064506,1732321461999,-150.0,0.00065988,60]
[343064507,1732321462024,-150.0,0.00065988,60]
[343064508,1732321462053,-10954.97659661,0.0006599,30]
[343064509,1732321462083,-150.0,0.00065994,60]
[343064510,1732321462109,-266.0,0.00065998,120]
[343064511,1732321462135,-266.0,0.00065998,120]
[343064512,1732321462161,-266.0,0.00065998,120]
[343064513,1732321462186,-266.0,0.00065998,120]
[343064514,1732321462213,-266.0,0.00065998,120]
[343064515,1732321462238,-266.0,0.00065998,120]
[343064516,1732321462264,-266.0,0.00065998,120]
[343064517,1732321462291,-266.0,0.00065998,120]
[343064518,1732321462319,-266.0,0.00065998,120]
[343064519,1732321462344,-266.0,0.00065998,120]
[343064520,1732321462371,-266.0,0.00065998,120]
[343064521,1732321462396,-266.0,0.00065998,120]
[343064522,1732321462422,-266.0,0.00065998,120]
[343064523,1732321462447,-266.0,0.00065998,120]
[343064524,1732321462474,-153.0,0.00065998,120]
[343064525,1732321462499,-153.0,0.00065998,120]
[343064526,1732321462525,-153.0,0.00065998,120]
[343064527,1732321462551,-150.0,0.00065998,60]
[343064528,1732321462578,-1000.0,0.00065999,14]
[343064529,1732321462603,-1000.0,0.00065999,30]
[343064530,1732321462628,-291.6859,0.00065999,30]
[343064531,1732321462653,-500.0,0.00065999,120]
[343064532,1732321462677,-500.0,0.00065999,120]
[343064533,1732321462703,-500.0,0.00065999,120]
[343064534,1732321462731,-500.0,0.00065999,120]
[343064535,1732321462764,-500.0,0.00065999,120]
[343064536,1732321462791,-500.0,0.00065999,120]
[343064537,1732321462819,-500.0,0.00065999,120]
[343064538,1732321462845,-500.0,0.00065999,120]
[343064539,1732321462870,-500.0,0.00065999,120]
[343064540,1732321462895,-500.0,0.00065999,120]
[343064541,1732321462920,-221.81701394,0.00065999,120]
[343064542,1732321462946,-500.0,0.00065999,120]
[343064543,1732321462972,-500.0,0.00065999,120]
[343064544,1732321462998,-500.0,0.00065999,120]
[343064545,1732321463023,-500.0,0.00065999,120]
[343064546,1732321463049,-500.0,0.00065999,120]
[343064547,1732321463076,-500.0,0.00065999,120]
[343064548,1732321463104,-151.50537375,0.00065999,120]
[343064549,1732321463132,-500.0,0.00065999,120]
[343064550,1732321463159,-500.0,0.00065999,120]
[343064551,1732321463251,-500.0,0.00065999,120]
[343064552,1732321463292,-500.0,0.00065999,120]
[343064553,1732321463322,-500.0,0.00065999,120]
[343064554,1732321463349,-500.0,0.00065999,120]
[343064555,1732321463377,-500.0,0.00065999,120]
[343064556,1732321463405,-500.0,0.00065999,120]
[343064557,1732321463432,-500.0,0.00065999,120]
[343064558,1732321463459,-500.0,0.00065999,120]
[343064559,1732321463486,-500.0,0.00065999,120]
[343064560,1732321463513,-256.89390629,0.00065999,120]
[343064561,1732321463539,-500.0,0.00065999,120]
[343064562,1732321463567,-500.0,0.00065999,120]
[343064563,1732321463595,-500.0,0.00065999,120]
[343064564,1732321463621,-500.0,0.00065999,120]
[343064565,1732321463647,-500.0,0.00065999,120]
[343064566,1732321463672,-608.79,0.00065999,120]
[343064567,1732321463699,-500.0,0.00065999,120]
[343064568,1732321463726,-500.0,0.00065999,120]
[343064569,1732321463752,-500.0,0.00065999,120]
[343064570,1732321463778,-500.0,0.00065999,120]
[343064571,1732321463805,-500.0,0.00065999,120]
[343064572,1732321463832,-500.0,0.00065999,120]
[343064573,1732321463858,-500.0,0.00065999,120]
[343064574,1732321463884,-500.0,0.00065999,120]
[343064575,1732321463909,-500.0,0.00065999,120]
[343064576,1732321463934,-500.0,0.00065999,120]
[343064577,1732321463959,-500.0,0.00065999,120]
[343064578,1732321463984,-500.0,0.00065999,120]
[343064579,1732321464009,-500.0,0.00065999,120]
[343064580,1732321464039,-500.0,0.00065999,120]
[343064581,1732321464065,-500.0,0.00065999,120]
[343064582,1732321464092,-500.0,0.00065999,120]
[343064583,1732321464118,-500.0,0.00065999,120]
[343064584,1732321464145,-500.0,0.00065999,120]
[343064585,1732321464171,-220.03638927,0.00065999,120]
[343064586,1732321464197,-500.0,0.00065999,120]
[343064587,1732321464222,-500.0,0.00065999,120]
[343064588,1732321464248,-500.0,0.00065999,120]
[343064589,1732321464276,-500.0,0.00065999,120]
[343064590,1732321464302,-590.32,0.00065999,120]
[343064591,1732321464330,-500.0,0.00065999,120]
[343064592,1732321464356,-500.0,0.00065999,120]
[343064593,1732321464381,-211.91127465,0.00065999,120]
[343064594,1732321464406,-500.0,0.00065999,120]
[343064595,1732321464432,-500.0,0.00065999,120]
[343064596,1732321464457,-500.0,0.00065999,120]
[343064597,1732321464483,-500.0,0.00065999,120]
[343064598,1732321464507,-500.0,0.00065999,120]
[343064599,1732321464533,-500.0,0.00065999,120]
[343064600,1732321464560,-500.0,0.00065999,120]
[343064601,1732321464588,-500.0,0.00065999,120]
[343064602,1732321464614,-500.0,0.00065999,120]
[343064603,1732321464639,-500.0,0.00065999,120]
[343064604,1732321464750,-500.0,0.00065999,120]
[343064605,1732321464776,-500.0,0.00065999,120]
[343064606,1732321464802,-500.0,0.00065999,120]
[343064607,1732321464830,-579.26896148,0.00065999,120]
[343064608,1732321464856,-500.0,0.00065999,120]
[343064609,1732321464882,-500.0,0.00065999,120]
[343064610,1732321464908,-500.0,0.00065999,120]
[343064611,1732321464933,-500.0,0.00065999,120]
[343064612,1732321464958,-500.0,0.00065999,120]
[343064613,1732321464984,-500.0,0.00065999,120]
[343064614,1732321465010,-299.77716584,0.00065999,120]
[343064615,1732321465036,-500.0,0.00065999,120]
[343064616,1732321465063,-500.0,0.00065999,120]
[343064617,1732321465088,-495.42326107,0.00065999,120]
[343064618,1732321465114,-500.0,0.00065999,120]
[343064619,1732321465140,-500.0,0.00065999,120]
[343064620,1732321465166,-500.0,0.00065999,120]
[343064621,1732321465192,-500.0,0.00065999,120]
[343064622,1732321465218,-256.64960944,0.00065999,120]
[343064623,1732321465244,-391.36,0.00065999,120]
[343064624,1732321465270,-500.0,0.00065999,120]
[343064625,1732321465296,-500.0,0.00065999,120]
[343064626,1732321465326,-500.0,0.00065999,120]
[343064627,1732321465353,-499.68611315,0.00065999,120]
[343064628,1732321465378,-502.10684856,0.00065999,120]
[343064629,1732321465405,-500.0,0.00065999,120]
[343064630,1732321465431,-500.0,0.00065999,120]
[343064631,1732321465457,-395.87,0.00065999,120]
[343064632,1732321465484,-500.0,0.00065999,120]
[343064633,1732321465509,-500.0,0.00065999,2]
[343064634,1732321465534,-500.0,0.00065999,120]
[343064635,1732321465562,-500.0,0.00065999,120]
[343064636,1732321465588,-500.0,0.00065999,120]
[343064637,1732321465616,-500.0,0.00065999,120]
[343064638,1732321465643,-397.27,0.00065999,120]
[343064639,1732321465670,-500.0,0.00065999,120]
[343064640,1732321465698,-500.0,0.00065999,120]
[343064641,1732321465725,-500.0,0.00065999,120]
[343064642,1732321465750,-500.0,0.00065999,120]
[343064643,1732321465777,-500.0,0.00065999,120]
[343064644,1732321465805,-605.4863951,0.00065999,120]
[343064645,1732321465832,-501.20815972,0.00065999,120]
[343064646,1732321465857,-500.0,0.00065999,120]
[343064647,1732321465882,-500.0,0.00065999,120]
[343064648,1732321465907,-555.32615702,0.00065999,120]
[343064649,1732321465931,-500.0,0.00065999,120]
[343064650,1732321465957,-500.0,0.00065999,120]
[343064651,1732321465982,-500.0,0.00065999,120]
[343064652,1732321466007,-500.0,0.00065999,120]
[343064653,1732321466032,-579.0,0.00065999,120]